fUSD/lending_fUSD_20250206
["ID","MTS","AMOUNT","RATE_DAILY","PERIOD"]
[352011609,1738878636173,-500.0,0.00017509,2]
[352011610,1738878636183,-500.0,0.00017509,2]
[352011611,1738878636192,-500.0,0.00017509,2]
[352011612,1738878636202,-500.0,0.00017509,2]
[352011613,1738878636212,-500.0,0.00017509,2]
[352011614,1738878636223,-500.0,0.00017509,2]
[352011615,1738878636232,-451.94,0.00017509,2]
[352011616,1738878636242,-500.0,0.00017509,2]
[352011617,1738878636251,-393.828565,0.00017509,2]
[352011618,1738878636261,-500.0,0.00017509,2]
[352011619,1738878636270,-429.06,0.00017509,2]
[352011620,1738878636280,-556.52,0.00017509,2]
[352011621,1738878636289,-644.22,0.00017509,2]
[352011622,1738878636300,-567.19,0.00017509,2]
[352011623,1738878636311,-592.13,0.00017509,2]
[352011624,1738878636320,-500.0,0.00017509,2]
[352011625,1738878636329,-561.57,0.00017509,2]
[352011626,1738878636339,-500.0,0.00017509,2]
[352011627,1738878636348,-655.87,0.00017509,2]
[352011628,1738878636360,-557.66,0.00017509,2]
[352011629,1738878636370,-500.0,0.00017509,2]
[352011630,1738878636380,-536.13,0.00017509,2]
[352011631,1738878636389,-500.0,0.00017513,2]
[352011632,1738878636399,-2000.0,0.00017513,2]
[352011633,1738878636409,-500.0,0.00017513,2]
[352011634,1738878636419,-200.0,0.00017513,2]
[352011635,1738878636429,-394.66,0.00017524,2]
[352011636,1738878636440,-377.31,0.00017529,2]
[352011637,1738878636449,-431.53194145,0.00017536,2]
[352011638,1738878636458,-1977.76235028,0.00017545,2]
[352011639,1738878636468,-315.78065538,0.00017545,2]
[352011640,1738878636478,-1259.27646234,0.00017562,5]
[352011641,1738878636488,-746.0,0.000176,2]
[352011642,1738878636497,-1800.0,0.000176,6]
[352011643,1738878636507,-416.2820843,0.0001764,2]
[352011644,1738878636516,-1259.27646234,0.00017644,5]
[352011645,1738878636525,-500.0,0.00017644,2]
[352011646,1738878636535,-500.0,0.00017644,2]
[352011647,1738878636545,-500.0,0.00017644,2]
[352011648,1738878636554,-500.0,0.00017644,2]
[352011649,1738878636564,-500.0,0.00017645,2]
[352011650,1738878636573,-500.0,0.00017645,2]
[352011651,1738878636582,-500.0,0.00017645,2]
[352011652,1738878636592,-500.0,0.00017645,2]
[352011653,1738878636601,-500.0,0.00017645,2]
[352011654,1738878636610,-500.0,0.00017645,2]
[352011655,1738878636620,-500.0,0.00017645,2]
[352011656,1738878636630,-522.43,0.00017645,2]
[352011657,1738878636639,-500.0,0.00017645,2]
[352011658,1738878636649,-500.0,0.00017645,2]
[352011659,1738878636658,-500.0,0.00017645,2]
[352011660,1738878636668,-156.921718,0.00017645,2]
[352011661,1738878636677,-500.0,0.00017645,2]
[352011662,1738878636687,-500.0,0.00017645,2]
[352011663,1738878636696,-155.292748,0.00017645,2]
[352011664,1738878636706,-500.0,0.00017645,2]
[352011665,1738878636716,-500.0,0.00017645,2]
[352011666,1738878636726,-500.0,0.00017645,2]
[352011667,1738878636735,-500.0,0.00017645,2]
[352011668,1738878636745,-500.0,0.00017645,2]
[352011669,1738878636754,-500.0,0.00017645,2]
[352011670,1738878636766,-500.0,0.00017645,2]
[352011671,1738878636775,-500.0,0.00017645,2]
[352011672,1738878636785,-500.0,0.00017645,2]
[352011673,1738878636796,-500.0,0.00017645,2]
[352011674,1738878636806,-500.0,0.00017645,2]
[352011675,1738878636817,-500.0,0.00017645,2]
[352011676,1738878636828,-500.0,0.00017645,2]
[352011677,1738878636838,-500.0,0.00017645,2]
[352011678,1738878636847,-500.0,0.00017645,2]
[352011679,1738878636857,-500.0,0.00017645,2]
[352011680,1738878636867,-500.0,0.00017645,2]
[352011681,1738878636876,-208.38,0.00017645,2]
[352011682,1738878636887,-500.0,0.00017645,2]
[352011683,1738878636897,-616.93,0.00017645,2]
[352011684,1738878636907,-500.0,0.00017645,2]
[352011685,1738878636917,-300.04,0.00017645,2]
[352011686,1738878636926,-827.29,0.00017645,2]
[352011687,1738878636935,-500.0,0.00017645,2]
[352011688,1738878636945,-500.0,0.00017645,2]
[352011689,1738878636954,-500.0,0.00017645,2]
[352011690,1738878636964,-580.93,0.00017645,2]
[352011691,1738878636974,-500.0,0.00017645,2]
[352011692,1738878636983,-500.0,0.00017645,2]
[352011693,1738878636992,-500.0,0.00017645,2]
[352011694,1738878637002,-500.0,0.00017645,2]
[352011695,1738878637011,-500.0,0.00017645,2]
[352011696,1738878637020,-500.0,0.00017645,2]
[352011697,1738878637030,-733.45,0.00017645,2]
[352011698,1738878637041,-500.0,0.00017645,2]
[352011699,1738878637051,-500.0,0.00017645,2]
[352011700,1738878637061,-540.73,0.00017645,2]
[352011701,1738878637070,-500.0,0.00017645,2]
[352011702,1738878637078,-269.41,0.00017645,2]
[352011703,1738878637087,-500.0,0.00017645,2]
[352011704,1738878637096,-500.0,0.00017645,2]
[352011705,1738878637105,-500.0,0.00017645,2]
[352011706,1738878637115,-254.42061458,0.00017645,2]
[352011707,1738878637125,-500.0,0.00017645,2]
[352011708,1738878637136,-500.0,0.00017645,2]
[352011709,1738878637147,-500.0,0.00017645,2]
[352011710,1738878637157,-500.0,0.00017645,2]
[352011711,1738878637167,-416.1058421,0.00017645,2]
[352011712,1738878637186,-83.8941579,0.00017645,2]
[352011713,1738878637195,-751.64,0.00017645,2]
[352011714,1738878637205,-537.27,0.00017645,2]
[352011715,1738878637215,-555.27058094,0.00017645,2]
[352011716,1738878637226,-648.48,0.00017645,2]
[352011717,1738878637235,-582.96,0.00017645,2]
[352011718,1738878637245,-504.35,0.00017645,2]
[352011719,1738878637255,-641.49,0.00017645,2]
[352011720,1738878637264,-500.0,0.00017645,2]
[352011721,1738878637273,-500.0,0.00017645,2]
[352011722,1738878637281,-500.0,0.00017645,2]
[352011723,1738878637291,-500.0,0.00017645,2]
[352011724,1738878637300,-500.0,0.00017645,2]
[352011725,1738878637309,-391.33,0.00017645,2]
[352011726,1738878637320,-518.2,0.00017645,2]
[352011727,1738878637330,-500.0,0.00017645,2]
[352011728,1738878637340,-971.3,0.00017645,2]
[352011729,1738878637350,-1659.31,0.00017645,2]
[352011730,1738878637362,-500.0,0.00017645,2]
[352011731,1738878637372,-869.6,0.00017645,2]
[352011732,1738878637382,-500.0,0.00017645,2]
[352011733,1738878637391,-500.0,0.00017645,2]
[352011734,1738878637403,-362.35,0.00017645,2]
[352011735,1738878637412,-500.0,0.00017645,2]
[352011736,1738878637422,-835.94,0.00017645,2]
[352011737,1738878637431,-500.0,0.00017645,2]
[352011738,1738878637441,-500.0,0.00017645,2]
[352011739,1738878637453,-633.84,0.00017645,2]
[352011740,1738878637462,-469.87,0.00017645,2]
[352011741,1738878637474,-525.99,0.00017645,2]
[352011742,1738878637483,-500.0,0.00017645,2]
[352011743,1738878637493,-592.38,0.00017645,2]
[352011744,1738878637503,-770.8,0.00017645,2]
[352011745,1738878637513,-500.0,0.00017645,2]
[352011746,1738878637523,-514.52,0.00017645,2]
[352011747,1738878637533,-500.0,0.00017645,2]
[352011748,1738878637543,-160.93,0.00017645,2]
[352011749,1738878637552,-500.0,0.00017645,2]
[352011750,1738878637562,-598.13,0.00017645,2]
[352011751,1738878637572,-1248.33,0.00017645,2]
[352011752,1738878637581,-500.0,0.00017645,2]
[352011753,1738878637590,-500.0,0.00017645,2]
[352011754,1738878637600,-500.0,0.00017645,2]
[352011755,1738878637610,-500.0,0.00017645,2]
[352011756,1738878637620,-500.0,0.00017645,2]
[352011757,1738878637630,-540.93370545,0.00017645,2]
[352011758,1738878637642,-11.06629455,0.00017645,2]
[352011759,1738878637817,-512.84,0.00017645,2]
[352011760,1738878637827,-453.59370545,0.00017645,2]
[352011761,1738878637839,-46.40629455,0.00017645,2]
[352011762,1738878637849,-500.0,0.00017645,2]
[352011763,1738878637860,-500.0,0.00017645,2]
[352011764,1738878637870,-643.86,0.00017645,2]
[352011765,1738878637880,-648.11,0.00017645,2]
[352011766,1738878637890,-638.57,0.00017645,2]
[352011767,1738878637900,-500.0,0.00017645,2]
[352011768,1738878637910,-689.27,0.00017645,2]
[352011769,1738878637920,-500.0,0.00017645,2]
[352011770,1738878637931,-952.95,0.00017645,2]
[352011772,1738878637941,-512.05,0.00017645,2]
[352011774,1738878637952,-627.25,0.00017645,2]
[352011775,1738878637962,-669.85,0.00017645,2]
[352011776,1738878637975,-500.0,0.00017645,2]
[352011777,1738878637985,-548.78,0.00017645,2]
[352011778,1738878637995,-500.0,0.00017645,2]
[352011779,1738878638004,-938.81,0.00017645,2]
[352011780,1738878638014,-500.0,0.00017645,2]
[352011781,1738878638023,-500.0,0.00017645,2]
[352011782,1738878638033,-500.0,0.00017645,2]
[352011783,1738878638042,-735.28,0.00017645,2]
[352011784,1738878638052,-500.0,0.00017645,2]
[352011785,1738878638061,-500.0,0.00017645,2]
[352011786,1738878638071,-500.0,0.00017645,2]
[352011787,1738878638081,-500.0,0.00017645,2]
[352011788,1738878638091,-500.0,0.00017645,2]
[352011789,1738878638101,-1238.67,0.00017645,2]
[352011790,1738878638111,-1253.84,0.00017645,2]
[352011791,1738878638120,-500.0,0.00017645,2]
[352011792,1738878638130,-500.0,0.00017645,2]
[352011793,1738878638139,-500.0,0.00017645,2]
[352011794,1738878638149,-700.58,0.00017645,2]
[352011795,1738878638159,-1314.72370545,0.00017645,2]
[352011796,1738878638171,-597.21629455,0.00017645,2]
[352011797,1738878638181,-500.0,0.00017645,2]
[352011798,1738878638190,-500.0,0.00017645,2]
[352011799,1738878638200,-277.95542569,0.00017645,2]
[352011800,1738878638215,-264.36457431,0.00017645,2]
[352011801,1738878638229,-546.58,0.00017645,2]
[352011802,1738878638240,-549.5,0.00017645,2]
[352011803,1738878638250,-500.0,0.00017645,2]
[352011804,1738878638260,-500.0,0.00017645,2]
[352011805,1738878638270,-500.0,0.00017645,2]
[352011806,1738878638280,-500.0,0.00017645,2]
[352011807,1738878638290,-500.0,0.00017645,2]
[352011808,1738878638300,-500.0,0.00017645,2]
[352011809,1738878638310,-660.67,0.00017645,2]
[352011810,1738878638319,-500.0,0.00017645,2]
[352011811,1738878638328,-500.0,0.00017645,2]
[352011812,1738878638338,-500.0,0.00017645,2]
[352011813,1738878638348,-500.0,0.00017645,2]
[352011814,1738878638358,-621.54,0.00017646,2]
[352011815,1738878638371,-500.0,0.00017646,2]
[352011816,1738878638381,-500.0,0.00017646,2]
[352011817,1738878638391,-500.0,0.00017646,2]
[352011818,1738878638400,-500.0,0.00017646,2]
[352011819,1738878638410,-500.0,0.00017646,2]
[352011820,1738878638419,-500.0,0.00017646,2]
[352011821,1738878638429,-500.0,0.00017646,2]
[352011822,1738878638440,-500.0,0.00017646,2]
[352011823,1738878638450,-500.0,0.00017646,2]
[352011824,1738878638459,-500.0,0.00017646,2]
[352011825,1738878638472,-500.0,0.00017646,2]
[352011826,1738878638482,-500.0,0.00017646,2]
[352011827,1738878638491,-338.28149896,0.00017646,2]
[352011828,1738878638501,-500.0,0.00017646,2]
[352011829,1738878638511,-500.0,0.00017646,2]
[352011830,1738878638520,-500.0,0.00017646,2]
[352011831,1738878638530,-500.0,0.00017646,2]
[352011832,1738878638540,-500.0,0.00017646,2]
[352011833,1738878638550,-159.52,0.00017646,2]
[352011834,1738878638559,-644.22,0.00017646,2]
[352011835,1738878638568,-567.19,0.00017646,2]
[352011836,1738878638578,-592.13,0.00017646,2]
[352011837,1738878638588,-561.57,0.00017646,2]
[352011838,1738878638597,-500.0,0.00017646,2]
[352011839,1738878638607,-655.87,0.00017646,2]
[352011840,1738878638616,-557.66,0.00017646,2]
[352011842,1738878638626,-500.0,0.00017646,2]
[352011844,1738878638637,-536.13,0.00017646,2]
[352011846,1738878638647,-1977.76235024,0.00017652,2]
[352011848,1738878638657,-2700.0,0.000177,6]
[352011850,1738878638667,-1272.0,0.0001772,2]
[352011852,1738878638676,-2023.0,0.0001772,2]
[352011853,1738878638686,-568.0,0.0001772,2]
[352011855,1738878638696,-638.0,0.0001772,2]
[352011857,1738878638706,-1330.089,0.0001772,2]
[352011859,1738878638716,-1264.0,0.0001772,2]
[352011861,1738878638730,-783.0,0.0001772,2]
[352011862,1738878638740,-2953.0,0.0001772,2]
[352011863,1738878638749,-807.258,0.0001772,2]
[352011865,1738878638759,-539.0,0.0001772,2]
[352011867,1738878638767,-4023.0,0.0001772,2]
[352011869,1738878638777,-3911.0,0.0001772,2]
[352011871,1738878638787,-150.0,0.0001772,2]
[352011873,1738878638797,-1108.0,0.0001772,2]
[352011875,1738878638807,-1259.27646234,0.00017726,5]
[352011877,1738878638817,-1000.0,0.00017756,2]
[352011878,1738878638826,-1977.76235024,0.00017758,2]
[352011880,1738878638835,-500.0,0.00017781,2]
[352011882,1738878638844,-500.0,0.00017781,2]
[352011884,1738878638854,-500.0,0.00017781,2]
[352011886,1738878638863,-500.0,0.00017781,2]
[352011888,1738878638872,-500.0,0.00017782,2]
[352011890,1738878638882,-500.0,0.00017782,2]
[352011892,1738878638891,-500.0,0.00017782,2]
[352011894,1738878638900,-500.0,0.00017782,2]
[352011896,1738878638909,-500.0,0.00017782,2]
[352011898,1738878638918,-500.0,0.00017782,2]
[352011900,1738878638928,-500.0,0.00017782,2]
[352011902,1738878638937,-522.43,0.00017782,2]
[352011904,1738878638947,-500.0,0.00017782,2]
[352011906,1738878638956,-500.0,0.00017782,2]
[352011908,1738878638966,-500.0,0.00017782,2]
[352011910,1738878638977,-500.0,0.00017782,2]
[352011912,1738878638988,-500.0,0.00017782,2]
[352011913,1738878638997,-500.0,0.00017782,2]
[352011916,1738878639007,-500.0,0.00017782,2]
[352011918,1738878639016,-500.0,0.00017782,2]
[352011920,1738878639026,-500.0,0.00017782,2]
[352011921,1738878639036,-500.0,0.00017782,2]
[352011922,1738878639045,-500.0,0.00017782,2]
[352011923,1738878639054,-500.0,0.00017782,2]
[352011924,1738878639064,-500.0,0.00017782,2]
[352011925,1738878639073,-500.0,0.00017782,2]
[352011926,1738878639082,-500.0,0.00017782,2]
[352011927,1738878639091,-500.0,0.00017782,2]
[352011928,1738878639100,-500.0,0.00017782,2]
[352011929,1738878639109,-500.0,0.00017782,2]
[352011930,1738878639118,-500.0,0.00017782,2]
[352011931,1738878639127,-582.4,0.00017782,2]
[352011932,1738878639136,-500.0,0.00017782,2]
[352011933,1738878639145,-417.67,0.00017782,2]
[352011934,1738878639154,-616.93,0.00017782,2]
[352011935,1738878639164,-155.67581664,0.00017782,2]
[352011936,1738878639173,-827.29,0.00017782,2]
[352011937,1738878639182,-500.0,0.00017782,2]
[352011938,1738878639191,-500.0,0.00017782,2]
[352011939,1738878639200,-308.37,0.00017782,2]
[352011940,1738878639209,-580.93,0.00017782,2]
[352011941,1738878639224,-500.0,0.00017782,2]
[352011942,1738878639233,-500.0,0.00017782,2]
[352011943,1738878639242,-168.93,0.00017782,2]
[352011944,1738878639251,-500.0,0.00017782,2]
[352011946,1738878639260,-500.0,0.00017782,2]
[352011947,1738878639269,-594.67,0.00017782,2]
[352011949,1738878639278,-733.45,0.00017782,2]
[352011951,1738878639287,-500.0,0.00017782,2]
[352011953,1738878639296,-500.0,0.00017782,2]
[352011955,1738878639306,-540.73,0.00017782,2]
[352011957,1738878639315,-500.0,0.00017782,2]
[352011959,1738878639324,-282.14,0.00017782,2]
[352011961,1738878639333,-500.0,0.00017782,2]
[352011963,1738878639342,-500.0,0.00017782,2]
[352011965,1738878639353,-500.0,0.00017782,2]
[352011967,1738878639364,-500.0,0.00017782,2]
[352011969,1738878639374,-500.0,0.00017782,2]
[352011971,1738878639383,-500.0,0.00017782,2]
[352011973,1738878639392,-255.54,0.00017782,2]
[352011975,1738878639402,-751.64,0.00017782,2]
[352011977,1738878639411,-537.27,0.00017782,2]
[352011979,1738878639420,-648.48,0.00017782,2]
[352011981,1738878639430,-582.96,0.00017782,2]
[352011983,1738878639440,-504.35,0.00017782,2]
[352011984,1738878639450,-641.49,0.00017782,2]
[352011986,1738878639459,-500.0,0.00017782,2]
[352011988,1738878639472,-500.0,0.00017782,2]
[352011990,1738878639482,-500.0,0.00017782,2]
[352011993,1738878639492,-370.31,0.00017782,2]
[352011994,1738878639502,-500.0,0.00017782,2]
[352011997,1738878639512,-971.3,0.00017782,2]
[352011999,1738878639522,-1659.31,0.00017782,2]
[352012000,1738878639530,-500.0,0.00017782,2]
[352012002,1738878639539,-869.6,0.00017782,2]
[352012004,1738878639548,-500.0,0.00017782,2]
[352012006,1738878639559,-500.0,0.00017782,2]
[352012008,1738878639568,-500.0,0.00017782,2]
[352012010,1738878639578,-835.94,0.00017782,2]
[352012012,1738878639587,-500.0,0.00017782,2]
[352012015,1738878639597,-500.0,0.00017782,2]
[352012016,1738878639607,-633.84,0.00017782,2]
[352012018,1738878639616,-525.99,0.00017782,2]
[352012021,1738878639625,-500.0,0.00017782,2]
[352012023,1738878639635,-592.38,0.00017782,2]
[352012024,1738878639644,-770.8,0.00017782,2]
[352012026,1738878639654,-195.97,0.00017782,2]
[352012028,1738878639665,-514.52,0.00017782,2]
[352012031,1738878639674,-372.38,0.00017782,2]
[352012032,1738878639683,-500.0,0.00017782,2]
[352012034,1738878639693,-598.13,0.00017782,2]
[352012035,1738878639702,-1248.33,0.00017782,2]
[352012037,1738878639711,-500.0,0.00017782,2]
[352012039,1738878639723,-500.0,0.00017782,2]
[352012041,1738878639732,-500.0,0.00017782,2]
[352012043,1738878639741,-500.0,0.00017782,2]
[352012045,1738878639750,-500.0,0.00017782,2]
[352012047,1738878639759,-552.0,0.00017782,2]
[352012049,1738878639768,-512.84,0.00017782,2]
[352012051,1738878639782,-500.0,0.00017782,2]
[352012053,1738878639793,-306.46426511,0.00017782,2]
[352012055,1738878639805,-500.0,0.00017782,2]
[352012057,1738878639817,-643.86,0.00017782,2]
[352012060,1738878639828,-648.11,0.00017782,2]
[352012062,1738878639839,-638.57,0.00017782,2]
[352012064,1738878639848,-500.0,0.00017782,2]
[352012066,1738878639860,-689.27,0.00017782,2]
[352012068,1738878639871,-500.0,0.00017782,2]
[352012070,1738878639882,-952.95,0.00017782,2]
[352012072,1738878639894,-512.05,0.00017782,2]
[352012074,1738878639907,-627.25,0.00017782,2]
[352012076,1738878639918,-669.85,0.00017782,2]
[352012079,1738878639931,-500.0,0.00017782,2]
[352012081,1738878639943,-548.78,0.00017782,2]
[352012083,1738878639955,-500.0,0.00017782,2]
[352012085,1738878639966,-938.81,0.00017782,2]
[352012087,1738878639979,-500.0,0.00017782,2]
[352012090,1738878639991,-500.0,0.00017782,2]
[352012092,1738878640001,-500.0,0.00017782,2]
[352012094,1738878640011,-735.28,0.00017782,2]
[352012096,1738878640021,-500.0,0.00017782,2]
[352012098,1738878640034,-500.0,0.00017782,2]
[352012100,1738878640045,-156.09976401,0.00017782,2]
[352012102,1738878640056,-500.0,0.00017782,2]
[352012104,1738878640068,-362.28979767,0.00017782,2]
[352012107,1738878640079,-1238.67,0.00017782,2]
[352012109,1738878640090,-1253.84,0.00017782,2]
[352012111,1738878640102,-500.0,0.00017782,2]
[352012113,1738878640113,-500.0,0.00017782,2]
[352012115,1738878640125,-500.0,0.00017782,2]
[352012117,1738878640136,-700.58,0.00017782,2]
[352012119,1738878640148,-1911.94,0.00017782,2]
[352012122,1738878640160,-500.0,0.00017782,2]
[352012124,1738878640171,-500.0,0.00017782,2]
[352012126,1738878640183,-546.58,0.00017782,2]
[352012128,1738878640195,-500.0,0.00017782,2]
[352012130,1738878640207,-500.0,0.00017782,2]
[352012133,1738878640218,-638.53,0.00017782,2]
[352012135,1738878640230,-500.0,0.00017782,2]
[352012137,1738878640241,-500.0,0.00017782,2]
[352012139,1738878640253,-500.0,0.00017782,2]
[352012141,1738878640264,-660.67,0.00017782,2]
[352012143,1738878640274,-500.0,0.00017782,2]
[352012145,1738878640285,-500.0,0.00017782,2]
[352012148,1738878640297,-500.0,0.00017782,2]
[352012150,1738878640308,-500.0,0.00017783,2]
[352012152,1738878640320,-500.0,0.00017783,2]
[352012154,1738878640332,-500.0,0.00017783,2]
[352012156,1738878640344,-500.0,0.00017783,2]
[352012159,1738878640355,-325.78933341,0.00017783,2]
[352012161,1738878640371,-500.0,0.00017783,2]
[352012163,1738878640382,-500.0,0.00017783,2]
[352012165,1738878640392,-500.0,0.00017783,2]
[352012167,1738878640402,-500.0,0.00017783,2]
[352012169,1738878640413,-500.0,0.00017783,2]
[352012171,1738878640424,-500.0,0.00017783,2]
[352012174,1738878640435,-539.97133248,0.00017783,2]
[352012176,1738878640449,-500.0,0.00017783,2]
[352012178,1738878640460,-500.0,0.00017783,2]
[352012180,1738878640471,-500.0,0.00017783,2]
[352012182,1738878640481,-500.0,0.00017783,2]
[352012184,1738878640491,-500.0,0.00017783,2]
[352012186,1738878640501,-644.22,0.00017783,2]
[352012188,1738878640512,-567.19,0.00017783,2]
[352012190,1738878640524,-592.13,0.00017783,2]
[352012192,1738878640535,-561.57,0.00017783,2]
[352012195,1738878640548,-500.0,0.00017783,2]
[352012197,1738878640560,-655.87,0.00017783,2]
[352012199,1738878640571,-557.66,0.00017783,2]
[352012201,1738878640581,-500.0,0.00017783,2]
[352012203,1738878640592,-536.13,0.00017783,2]
[352012205,1738878640602,-150.0,0.00017787,2]
[352012207,1738878640612,-3600.0,0.000178,6]
[352012209,1738878640623,-1259.27646234,0.00017808,5]
[352012211,1738878640634,-1977.76235024,0.00017865,2]
[352012214,1738878640645,-1259.27646234,0.0001789,5]
[352012216,1738878640656,-500.0,0.00017899,2]
[352012218,1738878640667,-708.69680544,0.000179,2]
[352012220,1738878640677,-1197.43116756,0.000179,2]
[352012222,1738878640688,-150.0,0.000179,2]
[352012224,1738878640698,-4459.18179917,0.000179,6]
[352012245,1738878640891,-140.81820083,0.000179,6]
[352012247,1738878640902,-263.73917168,0.000179,3]
[352012249,1738878640914,-2045.32203808,0.000179,2]
[352012251,1738878640924,-166.45082803,0.000179,2]
[352012253,1738878640934,-198.74214943,0.000179,2]
[352012255,1738878640944,-461.08756648,0.000179,2]
[352012257,1738878640955,-500.0,0.00017918,2]
[352012259,1738878640966,-500.0,0.00017918,2]
[352012262,1738878640978,-500.0,0.00017918,2]
[352012264,1738878640989,-500.0,0.00017919,2]
[352012266,1738878640999,-500.0,0.00017919,2]
[352012268,1738878641009,-500.0,0.00017919,2]
[352012270,1738878641020,-500.0,0.00017919,2]
[352012272,1738878641031,-500.0,0.00017919,2]
[352012274,1738878641042,-500.0,0.00017919,2]
[352012277,1738878641054,-522.43,0.00017919,2]
[352012279,1738878641065,-500.0,0.00017919,2]
[352012281,1738878641075,-500.0,0.00017919,2]
[352012283,1738878641086,-500.0,0.00017919,2]
[352012285,1738878641097,-156.921718,0.00017919,2]
[352012287,1738878641107,-500.0,0.00017919,2]
[352012289,1738878641118,-155.292748,0.00017919,2]
[352012291,1738878641128,-404.13808912,0.00017919,2]
[352012293,1738878641139,-500.0,0.00017919,2]
[352012296,1738878641150,-500.0,0.00017919,2]
[352012298,1738878641160,-500.0,0.00017919,2]
[352012300,1738878641170,-500.0,0.00017919,2]
[352012302,1738878641181,-500.0,0.00017919,2]
[352012304,1738878641191,-500.0,0.00017919,2]
[352012306,1738878641202,-500.0,0.00017919,2]
[352012308,1738878641212,-500.0,0.00017919,2]
[352012310,1738878641224,-500.0,0.00017919,2]
[352012312,1738878641234,-500.0,0.00017919,2]
[352012314,1738878641244,-500.0,0.00017919,2]
[352012316,1738878641254,-500.0,0.00017919,2]
[352012319,1738878641265,-500.0,0.00017919,2]
[352012321,1738878641275,-500.0,0.00017919,2]
[352012323,1738878641285,-500.0,0.00017919,2]
[352012325,1738878641296,-616.93,0.00017919,2]
[352012327,1738878641306,-827.29,0.00017919,2]
[352012329,1738878641316,-500.0,0.00017919,2]
[352012331,1738878641327,-500.0,0.00017919,2]
[352012333,1738878641337,-580.93,0.00017919,2]
[352012335,1738878641348,-365.28931644,0.00017919,2]
[352012337,1738878641361,-500.0,0.00017919,2]
[352012339,1738878641373,-500.0,0.00017919,2]
[352012342,1738878641383,-500.0,0.00017919,2]
[352012343,1738878641393,-733.45,0.00017919,2]
[352012345,1738878641404,-500.0,0.00017919,2]
[352012347,1738878641414,-500.0,0.00017919,2]
[352012349,1738878641423,-540.73,0.00017919,2]
[352012351,1738878641432,-500.0,0.00017919,2]
[352012353,1738878641444,-500.0,0.00017919,2]
[352012355,1738878641455,-500.0,0.00017919,2]
[352012358,1738878641465,-500.0,0.00017919,2]
[352012359,1738878641477,-500.0,0.00017919,2]
[352012362,1738878641487,-500.0,0.00017919,2]
[352012364,1738878641496,-751.64,0.00017919,2]
[352012365,1738878641506,-537.27,0.00017919,2]
[352012368,1738878641516,-648.48,0.00017919,2]
[352012370,1738878641526,-582.96,0.00017919,2]
[352012372,1738878641536,-504.35,0.00017919,2]
[352012374,1738878641546,-641.49,0.00017919,2]
[352012375,1738878641555,-500.0,0.00017919,2]
[352012377,1738878641565,-500.0,0.00017919,2]
[352012379,1738878641575,-500.0,0.00017919,2]
[352012382,1738878641584,-500.0,0.00017919,2]
[352012383,1738878641594,-971.3,0.00017919,2]